fUSD/lending_fUSD_20260615
["ID","MTS","AMOUNT","RATE_DAILY","PERIOD"]
[425112897,1781523042000,-507.96,0.00014999,2]
[425112899,1781523042000,-507.96,0.00014999,2]
[425112904,1781523042000,-507.96,0.00014999,2]
[425112884,1781523042000,-500.0,0.00014999,2]
[425112901,1781523042000,-507.96,0.00014999,2]
[425112910,1781523042000,-507.96,0.00014999,2]
[425112913,1781523042000,-508.1253213,0.00014999,2]
[425112908,1781523042000,-507.96,0.00014999,2]
[425112935,1781523042000,-735110.749092,0.00015,2]
[425112941,1781523042000,-5037.80941753,0.00015,2]
[425112918,1781523042000,-300.0,0.00014999,2]
[425112928,1781523042000,-99200.13038445,0.00015,2]
[425112916,1781523042000,-300.0,0.00014999,2]
[425112924,1781523042000,-5660.0,0.00015,5]
[425112931,1781523042000,-3471.46584316,0.00015,3]
[425112906,1781523042000,-507.96,0.00014999,2]
[425112883,1781523042000,-500.0,0.00014999,2]
[425112902,1781523042000,-507.96,0.00014999,2]
[425112866,1781523042000,-6609.7950187,0.00014993,2]
[425112879,1781523042000,-159.16600636,0.00014997,10]
[425112849,1781523042000,-3906.68673339,0.000149,2]
[425112921,1781523042000,-300.0,0.00014999,2]
[425112852,1781523042000,-216.87720269,0.000149,2]
[425112854,1781523042000,-391.0,0.00014917,2]
[425112864,1781523042000,-12029.3936576,0.00014993,2]
[425112853,1781523042000,-210.01209058,0.000149,2]
[425112857,1781523042000,-500.0,0.00014965,2]
[425112855,1781523042000,-489.0,0.0001494,2]
[425112856,1781523042000,-350.0,0.00014959,2]
[425112859,1781523042000,-846.2666156,0.00014979,2]
[425112861,1781523042000,-512.2,0.00014985,2]
[425112844,1781523042000,-277.12337284,0.00014873,2]
[425112860,1781523042000,-3370.6236109,0.00014979,2]
[425112858,1781523042000,-40960.0395137,0.00014969,2]
[425112862,1781523042000,-152.3,0.00014985,2]
[425112863,1781523042000,-173.49935523,0.00014989,2]
[425112865,1781523042000,-13575.2211024,0.00014993,2]
[425112868,1781523042000,-209.6580137,0.00014993,2]
[425112867,1781523042000,-3488.8422792,0.00014993,2]
[425112873,1781523042000,-5946.6303624,0.00014993,2]
[425112869,1781523042000,-47682.8357283,0.00014993,2]
[425112885,1781523042000,-452.1384904,0.00014999,2]
[425112881,1781523042000,-1126.45563084,0.00014999,5]
[425112876,1781523042000,-151.0,0.00014997,2]
[425112946,1781523043000,-34.6968044,0.00015,2]
[425112947,1781523044000,-12583.01135173,0.00015,2]
[425112948,1781523044000,-11087.18963389,0.00015,2]
[425112950,1781523044000,-26034.74463442,0.00015,2]
[425112949,1781523044000,-3265.88365736,0.00015,2]
[425112951,1781523045000,-501.01383124,0.00015,2]
[425112952,1781523045000,-13341.0816071,0.00015,2]
[425112954,1781523045000,-4741.33995278,0.00015,2]
[425112953,1781523045000,-1346.67135666,0.00015,2]
[425112956,1781523045000,-338.42668579,0.00015,2]
[425112955,1781523045000,-447.69660852,0.00015,2]
[425112963,1781523046000,-3041.0426906,0.00015,2]
[425112962,1781523046000,-483.30046573,0.00015,2]
[425112961,1781523046000,-11143.73339015,0.00015,2]
[425112965,1781523046000,-337.60903982,0.00015,2]
[425112966,1781523046000,-584.65361861,0.00015,2]
[425112964,1781523046000,-828910.39746795,0.00015,2]
[425112977,1781523169000,-500.0,0.00012291,2]
[425112987,1781523171000,-500.0,0.00013698,2]
[425112978,1781523171000,-160.0,0.00012291,2]
[425112981,1781523171000,-250.0,0.00013289,2]
[425112980,1781523171000,-250.0,0.0001256,2]
[425112982,1781523171000,-193.0,0.0001352,2]
[425112986,1781523171000,-500.0,0.00013698,2]
[425112983,1781523171000,-250.0,0.0001352,2]
[425112985,1781523171000,-500.0,0.00013698,2]
[425112984,1781523171000,-362.36559013,0.00013698,2]
[425112979,1781523171000,-150.0,0.00012425,2]
[425112990,1781523171000,-500.0,0.00013698,2]
[425112989,1781523171000,-500.0,0.00013698,2]
[425112991,1781523171000,-500.0,0.00013698,2]
[425112992,1781523171000,-500.0,0.00013698,2]
[425112993,1781523171000,-500.0,0.00013698,2]
[425112995,1781523171000,-500.0,0.00013698,2]
[425112994,1781523171000,-500.0,0.00013698,2]
[425112997,1781523171000,-500.0,0.00013698,2]
[425112996,1781523171000,-500.0,0.00013698,2]
[425112999,1781523171000,-317.54884801,0.00013698,2]
[425112998,1781523171000,-500.0,0.00013698,2]
[425112988,1781523171000,-500.0,0.00013698,2]
[425113000,1781523172000,-305.92,0.00013786,2]
[425113002,1781523172000,261.16556186,0.00013698,2]
[425113001,1781523172000,500.0,0.00013698,2]
[425113005,1781523175000,-500.0,0.0001391,2]
[425113003,1781523175000,-238.83443814,0.00013698,2]
[425113004,1781523175000,-500.0,0.00013698,2]
[425113006,1781523176000,200.0,0.00013986,2]
[425113008,1781523177000,637.71069469,0.0001229,2]
[425113009,1781523177000,500.0,0.0001229,2]
[425113007,1781523177000,500.0,0.0001229,2]
[425113010,1781523177000,500.0,0.0001229,2]
[425113012,1781523177000,500.0,0.0001229,2]
[425113014,1781523177000,500.0,0.0001229,2]
[425113013,1781523177000,500.0,0.0001229,2]
[425113016,1781523177000,500.0,0.0001229,2]
[425113015,1781523177000,500.0,0.0001229,2]
[425113011,1781523177000,500.0,0.0001229,2]
[425113017,1781523182000,216.09656886,0.00012291,2]
[425113019,1781523192000,500.0,0.00013698,2]
[425113022,1781523192000,500.0,0.00013698,2]
[425113021,1781523192000,500.0,0.00013698,2]
[425113020,1781523192000,500.0,0.00013698,2]
[425113023,1781523193000,509.0284904,0.00013698,2]
[425113024,1781523378000,-166.66,0.00013004,2]
[425113028,1781523379000,-47.3408,0.00013697,2]
[425113026,1781523379000,-166.66,0.00013551,2]
[425113027,1781523379000,-151.0,0.00013697,2]
[425113025,1781523379000,-166.66,0.00013277,2]
[425113032,1781523393000,-321.0,0.00013697,2]
[425113030,1781523393000,-309.0,0.00013697,2]
[425113029,1781523393000,-102.6592,0.00013697,2]
[425113031,1781523393000,-317.0,0.00013697,2]
[425113038,1781523393000,-151.0,0.00013697,2]
[425113034,1781523393000,-315.0,0.00013697,2]
[425113035,1781523393000,-316.0,0.00013697,2]
[425113036,1781523393000,-310.0,0.00013697,2]
[425113037,1781523393000,-317.0,0.00013697,2]
[425113033,1781523393000,-152.0,0.00013697,2]
[425113040,1781523394000,-319.0,0.00013697,2]
[425113044,1781523394000,-317.0,0.00013697,2]
[425113041,1781523394000,-319.0,0.00013697,2]
[425113043,1781523394000,-312.0,0.00013697,2]
[425113042,1781523394000,-152.0,0.00013697,2]
[425113039,1781523394000,-319.0,0.00013697,2]
[425113046,1781523394000,-297.0,0.00013697,2]
[425113047,1781523394000,-318.0,0.00013697,2]
[425113048,1781523394000,-314.0,0.00013697,2]
[425113049,1781523394000,-309.0,0.00013697,2]
[425113050,1781523394000,-216.09656886,0.00013697,2]
[425113051,1781523394000,-14.24423114,0.00013697,2]
[425113045,1781523394000,-309.0,0.00013697,2]
[425113053,1781523463000,-640.16,0.00013608,2]
[425113052,1781523463000,-2935.6,0.00013608,2]
[425113062,1781523464000,-299.75576886,0.00013697,2]
[425113065,1781523464000,-150.0,0.00013698,2]
[425113064,1781523464000,-500.0,0.00013698,2]
[425113063,1781523464000,-319.0,0.00013697,2]
[425113061,1781523464000,-151.0,0.00013697,2]
[425113060,1781523464000,-431.0,0.00013697,2]
[425113055,1781523464000,-153.0,0.00013608,2]
[425113058,1781523464000,-570.85674385,0.00013696,2]
[425113057,1781523464000,-150.0,0.00013696,2]
[425113056,1781523464000,-150.0,0.00013696,2]
[425113054,1781523464000,-777.43,0.00013608,2]
[425113067,1781523464000,-151.0,0.00013698,2]
[425113059,1781523464000,-152.0,0.00013697,2]
[425113066,1781523464000,-311.0,0.00013698,2]
[425113073,1781523464000,-316.0,0.00013698,2]
[425113068,1781523464000,-309.0,0.00013698,2]
[425113081,1781523464000,-310.0,0.00013758,2]
[425113082,1781523464000,-333.96,0.00013787,2]
[425113079,1781523464000,-309.0,0.00013758,2]
[425113080,1781523464000,-321.0,0.00013758,2]
[425113076,1781523464000,-314.0,0.00013707,2]
[425113078,1781523464000,-150.0,0.00013757,2]
[425113077,1781523464000,-315.0,0.00013707,2]
[425113074,1781523464000,-317.0,0.00013698,2]
[425113083,1781523464000,-166.66,0.00013825,2]
[425113072,1781523464000,-151.0,0.00013698,2]
[425113071,1781523464000,-315.0,0.00013698,2]
[425113069,1781523464000,-313.0,0.00013698,2]
[425113075,1781523464000,-326.79,0.00013699,2]
[425113070,1781523464000,-313.0,0.00013698,2]
[425113085,1781523472000,377.78748729,0.00013698,2]
[425113084,1781523472000,500.0,0.00013698,2]
[425113086,1781523664000,151.0,0.000144,10]
[425113087,1781523993000,-200.0,0.00013335,2]
[425113088,1781523994000,-124.49558156,0.00013355,2]
[425113089,1781524153000,-166.66,0.0001261,2]
[425113092,1781524232000,-166.66,0.00012875,2]
[425113111,1781524232000,-1622.9378775,0.00013674,2]
[425113106,1781524232000,-150.0,0.00013463,2]
[425113102,1781524232000,-500.0,0.00013446,2]
[425113105,1781524232000,-1161.37,0.00013449,2]
[425113100,1781524232000,-500.0,0.00013446,2]
[425113104,1781524232000,-500.0,0.00013446,2]
[425113103,1781524232000,-409.4515932,0.00013446,2]
[425113101,1781524232000,-500.0,0.00013446,2]
[425113099,1781524232000,-221.09841546,0.00013446,2]
[425113098,1781524232000,-166.66,0.00013406,2]
[425113097,1781524232000,-154.09,0.000134,2]
[425113094,1781524232000,-150.0,0.00013331,2]
[425113096,1781524232000,-566.17,0.00013379,2]
[425113095,1781524232000,-1459.78441844,0.00013355,2]
[425113093,1781524232000,-166.66,0.00013141,2]
[425113109,1781524232000,-218.46,0.00013614,2]
[425113113,1781524232000,-500.0,0.00013678,2]
[425113108,1781524232000,-238.16663686,0.00013614,2]
[425113114,1781524232000,-198.29580143,0.00013678,2]
[425113112,1781524232000,-500.0,0.00013678,2]
[425113133,1781524232000,-8222.4724462,0.00013681,2]
[425113129,1781524232000,-500.0,0.00013446,2]
[425113132,1781524232000,-4327.7273131,0.00013681,2]
[425113127,1781524232000,-54.91238485,0.00013446,2]
[425113130,1781524232000,-222.28687484,0.00013678,2]
[425113128,1781524232000,-445.08761515,0.00013446,2]
[425113125,1781524232000,-196.47800772,0.00013446,2]
[425113126,1781524232000,-500.0,0.00013446,2]
[425113131,1781524232000,-3570.3554062,0.00013681,2]
[425113115,1781524232000,-241.47232913,0.00013678,2]
[425113120,1781524232000,-277.71312516,0.00013678,2]
[425113117,1781524232000,-613.25313585,0.00013678,2]
[425113116,1781524232000,-290.95666697,0.00013678,2]
[425113119,1781524232000,-500.0,0.00013678,2]
[425113118,1781524232000,-500.0,0.00013678,2]
[425113107,1781524232000,-2614.01,0.00013486,2]
[425113124,1781524232000,-303.52199228,0.00013446,2]
[425113110,1781524232000,-166.66,0.00013672,2]
[425113150,1781524233000,-1103.44,0.00013698,2]
[425113147,1781524233000,-500.0,0.00013698,2]
[425113154,1781524233000,-1103.44,0.00013698,2]
[425113152,1781524233000,-1103.44,0.00013698,2]
[425113151,1781524233000,-1103.44,0.00013698,2]
[425113156,1781524233000,-1103.44,0.00013698,2]
[425113157,1781524233000,-166.15,0.00013727,2]
[425113155,1781524233000,-1103.44,0.00013698,2]
[425113160,1781524233000,-150.0,0.00013832,2]
[425113148,1781524233000,-500.0,0.00013698,2]
[425113159,1781524233000,-174.50086462,0.00013808,2]
[425113149,1781524233000,-500.0,0.00013698,2]
[425113136,1781524233000,-152.0,0.00013681,2]
[425113145,1781524233000,-37.00780503,0.00013698,2]
[425113144,1781524233000,-500.0,0.00013698,2]
[425113143,1781524233000,-647.74685789,0.00013698,2]
[425113142,1781524233000,-504.10545625,0.00013698,2]
[425113141,1781524233000,-500.0,0.00013698,2]
[425113140,1781524233000,-153.0,0.00013681,2]
[425113139,1781524233000,-153.0,0.00013681,2]
[425113138,1781524233000,-150.0,0.00013681,2]
[425113135,1781524233000,-628.9740411,0.00013681,2]
[425113137,1781524233000,-152.0,0.00013681,2]
[425113134,1781524233000,-10223.3413793,0.00013681,2]
[425113153,1781524233000,-1103.44,0.00013698,2]
[425113146,1781524233000,-250.15363593,0.00013698,2]
[425113158,1781524233000,-174.50086462,0.00013808,2]
[425113177,1781524233000,-591.0,0.00013832,2]
[425113165,1781524233000,-217.6265061,0.00013832,2]
[425113188,1781524233000,-591.0,0.00013832,2]
[425113161,1781524233000,-150.0,0.00013832,2]
[425113189,1781524233000,-466.05936694,0.00013832,2]
[425113187,1781524233000,-591.0,0.00013832,2]
[425113186,1781524233000,-591.0,0.00013832,2]
[425113184,1781524233000,-591.0,0.00013832,2]
[425113185,1781524233000,-591.0,0.00013832,2]
[425113182,1781524233000,-591.0,0.00013832,2]
[425113181,1781524233000,-591.0,0.00013832,2]
[425113183,1781524233000,-591.0,0.00013832,2]
[425113179,1781524233000,-591.0,0.00013832,2]
[425113178,1781524233000,-591.0,0.00013832,2]
[425113176,1781524233000,-591.0,0.00013832,2]
[425113180,1781524233000,-591.0,0.00013832,2]
[425113173,1781524233000,-591.0,0.00013832,2]
[425113166,1781524233000,-150.0,0.00013832,2]
[425113164,1781524233000,-150.0,0.00013832,2]
[425113162,1781524233000,-207.5582428,0.00013832,2]
[425113167,1781524233000,-245.2777844,0.00013832,2]
[425113170,1781524233000,-591.0,0.00013832,2]
[425113163,1781524233000,-150.0,0.00013832,2]
[425113168,1781524233000,-591.0,0.00013832,2]
[425113172,1781524233000,-591.0,0.00013832,2]
[425113174,1781524233000,-591.0,0.00013832,2]
[425113175,1781524233000,-591.0,0.00013832,2]
[425113171,1781524233000,-591.0,0.00013832,2]
[425113169,1781524233000,-591.0,0.00013832,2]
[425113219,1781524240000,-544.88,0.00013787,2]
[425113205,1781524240000,-500.0,0.00013446,2]
[425113207,1781524240000,-500.0,0.00013446,2]
[425113212,1781524240000,-500.0,0.00013446,2]
[425113215,1781524240000,-500.0,0.00013446,2]
[425113213,1781524240000,-500.0,0.00013446,2]
[425113220,1781524240000,-124.94063306,0.00013832,2]
[425113222,1781524240000,-598.86059205,0.00013832,2]
[425113218,1781524240000,-500.0,0.00013446,2]
[425113223,1781524240000,-200.0,0.00013871,2]
[425113209,1781524240000,-500.0,0.00013446,2]
[425113216,1781524240000,-471.51459266,0.00013446,2]
[425113206,1781524240000,-500.0,0.00013446,2]
[425113193,1781524240000,-500.0,0.00013446,2]
[425113203,1781524240000,-500.0,0.00013446,2]
[425113202,1781524240000,-500.0,0.00013446,2]
[425113200,1781524240000,-500.0,0.00013446,2]
[425113210,1781524240000,-500.0,0.00013446,2]
[425113211,1781524240000,-500.0,0.00013446,2]
[425113201,1781524240000,-500.0,0.00013446,2]
[425113198,1781524240000,-500.0,0.00013446,2]
[425113197,1781524240000,-500.0,0.00013446,2]
[425113199,1781524240000,-500.0,0.00013446,2]
[425113196,1781524240000,-500.0,0.00013446,2]
[425113195,1781524240000,-393.3999986,0.00013446,2]
[425113194,1781524240000,-106.6000014,0.00013446,2]
[425113214,1781524240000,-500.0,0.00013446,2]
[425113204,1781524240000,-500.0,0.00013446,2]
[425113217,1781524240000,-500.0,0.00013446,2]
[425113208,1781524240000,-500.0,0.00013446,2]
[425113233,1781524240000,-600.0,0.00014163,2]
[425113221,1781524240000,-591.0,0.00013832,2]
[425113250,1781524240000,-4179.4237,0.0001454,2]
[425113247,1781524240000,-350.0,0.00014461,2]
[425113249,1781524240000,-250.0,0.00014535,2]
[425113248,1781524240000,-875.44604897,0.00014491,2]
[425113251,1781524240000,-78152.3405,0.0001454,2]
[425113252,1781524240000,-3216.7621,0.0001454,2]
[425113243,1781524240000,-500.0,0.00014393,2]
[425113240,1781524240000,-305.92,0.00014245,2]
[425113241,1781524240000,-350.0,0.00014312,2]
[425113242,1781524240000,-394.25461245,0.00014378,2]
[425113239,1781524240000,-302378.571,0.00014232,2]
[425113244,1781524240000,-305.92,0.00014435,2]
[425113237,1781524240000,-149392.07999479,0.00014232,2]
[425113246,1781524240000,-875.44604898,0.0001444,2]
[425113234,1781524240000,-250.0,0.00014163,2]
[425113238,1781524240000,-223481.61711876,0.00014232,2]
[425113232,1781524240000,-300.0,0.00014163,2]
[425113225,1781524240000,-8801.14543261,0.0001399,2]
[425113227,1781524240000,-3750.75986575,0.0001399,2]
[425113228,1781524240000,-250.0,0.00014,2]
[425113224,1781524240000,-166.66,0.00013937,2]
[425113226,1781524240000,-731.42,0.0001399,2]
[425113230,1781524240000,-313.0,0.00014106,2]
[425113231,1781524240000,-2000.0,0.00014106,2]
[425113235,1781524240000,-32089.12074455,0.00014232,2]
[425113245,1781524240000,-544.88,0.00014436,2]
[425113236,1781524240000,-84683.69734436,0.00014232,2]
[425113229,1781524240000,-152.0,0.00014101,2]
[425113280,1781524241000,-3000.0,0.00014639,2]
[425113271,1781524241000,-500.0,0.00014639,2]
[425113276,1781524241000,-500.0,0.00014639,2]
[425113277,1781524241000,-385.06,0.00014639,2]
[425113275,1781524241000,-500.0,0.00014639,2]
[425113274,1781524241000,-500.0,0.00014639,2]
[425113284,1781524241000,-500.0,0.00014639,2]
[425113300,1781524241000,-4000.0,0.00014691,2]
[425113290,1781524241000,-875.44604897,0.00014644,2]
[425113282,1781524241000,-500.0,0.00014639,2]
[425113286,1781524241000,-500.0,0.00014639,2]
[425113281,1781524241000,-500.0,0.00014639,2]
[425113294,1781524241000,-1038.6538766,0.0001466,2]
[425113298,1781524241000,-1103.44,0.00014672,2]
[425113269,1781524241000,-500.0,0.00014639,2]
[425113288,1781524241000,-500.0,0.00014639,2]
[425113272,1781524241000,-500.0,0.00014639,2]
[425113257,1781524241000,-176.57283503,0.00014567,2]
[425113270,1781524241000,-500.0,0.00014639,2]
[425113256,1781524241000,-875.44604897,0.00014542,2]
[425113255,1781524241000,-2500.0,0.0001454,2]
[425113254,1781524241000,-995.15067351,0.0001454,2]
[425113253,1781524241000,-1038.65387661,0.0001454,2]
[425113292,1781524241000,-350.0,0.00014646,2]
[425113258,1781524241000,-1038.6538766,0.0001458,2]
[425113260,1781524241000,-875.44604897,0.00014593,2]
[425113261,1781524241000,-236.66776,0.00014602,2]
[425113263,1781524241000,-183.596807,0.00014602,2]
[425113268,1781524241000,-500.0,0.00014639,2]
[425113259,1781524241000,-305.92,0.00014581,2]
[425113262,1781524241000,-220.637198,0.00014602,2]
[425113264,1781524241000,-263.18774,0.00014602,2]
[425113267,1781524241000,-509.08488653,0.00014639,2]
[425113265,1781524241000,-1038.6538766,0.0001462,2]
[425113266,1781524241000,-151.0,0.0001463,2]
[425113278,1781524241000,-250.0,0.00014639,2]
[425113279,1781524241000,-500.0,0.00014639,2]
[425113296,1781524241000,-704.28612464,0.00014669,2]
[425113273,1781524241000,-500.0,0.00014639,2]
[425113304,1781524241000,-875.44604897,0.00014696,2]
[425113351,1781524241000,-325.31580402,0.000148,2]
[425113357,1781524241000,-333.96,0.00014813,2]
[425113360,1781524241000,-875.44604897,0.00014849,2]
[425113358,1781524241000,-1038.6538766,0.0001482,2]
[425113355,1781524241000,-305.92,0.00014812,2]
[425113359,1781524241000,-350.0,0.00014849,2]
[425113361,1781524241000,-2914.0046839,0.0001485,2]
[425113347,1781524241000,-210.01209058,0.000148,2]
[425113362,1781524241000,-393.31528,0.0001485,2]
[425113363,1781524241000,-393.31529,0.0001485,2]
[425113365,1781524241000,-350.0,0.00014859,2]
[425113367,1781524241000,-1038.6538766,0.0001486,2]
[425113366,1781524241000,-393.31529,0.0001486,2]
[425113368,1781524241000,-85498.63367378,0.00014874,2]
[425113369,1781524241000,-571.81317053,0.00014874,2]
[425113302,1781524241000,-300.0,0.00014691,2]
[425113364,1781524241000,-941.23353337,0.0001485,2]
[425113349,1781524241000,-941.23353339,0.000148,2]
[425113353,1781524241000,-389.0,0.00014803,2]
[425113344,1781524241000,-258.80835787,0.000148,2]
[425113313,1781524241000,-1038.6538766,0.000147,2]
[425113340,1781524241000,-393.0,0.00014781,2]
[425113320,1781524241000,-544.88,0.00014705,2]
[425113322,1781524241000,-393.0,0.0001473,2]
[425113311,1781524241000,-7967.056,0.00014699,2]
[425113324,1781524241000,-1038.6538766,0.0001474,2]
[425113307,1781524241000,-500.0,0.00014698,2]
[425113316,1781524241000,-204.169883,0.000147,2]
[425113309,1781524241000,-560.203,0.00014699,2]
[425113318,1781524241000,-305.92,0.00014704,2]
[425113326,1781524241000,-151.0,0.00014744,2]
[425113338,1781524241000,-1038.6538766,0.0001478,2]
[425113330,1781524241000,-538.12337284,0.00014751,2]
[425113332,1781524241000,-393.0,0.00014762,2]
[425113334,1781524241000,-444.0,0.00014768,2]
[425113336,1781524241000,-580.81898067,0.0001478,2]
[425113342,1781524241000,-875.44604897,0.00014798,2]
[425113328,1781524241000,-875.44604897,0.00014747,2]
[425113395,1781524242000,-21762.72215122,0.00014874,2]
[425113393,1781524242000,-980.59343114,0.00014874,2]
[425113392,1781524242000,-216.09656886,0.00014116,2]
[425113390,1781524242000,-254.35801595,0.00014874,2]
[425113461,1781524243000,-3269.32371313,0.00014874,2]
[425113463,1781524243000,-4307.21580839,0.00014874,2]
[425113462,1781524243000,-6621.77086469,0.00014874,2]
[425113464,1781524246000,-3226.48507117,0.00014874,2]
[425113466,1781524246000,-165.0,0.0001488,2]
[425113467,1781524246000,-163.0,0.0001488,2]
[425113465,1781524246000,-200.0,0.0001488,2]
[425113468,1781524246000,-173.49935523,0.0001489,2]
[425113471,1781524246000,-500.0,0.00014899,2]
[425113469,1781524246000,-350.0,0.00014898,2]
[425113472,1781524246000,-500.0,0.00014899,2]
[425113478,1781524246000,-500.0,0.00014899,2]
[425113477,1781524246000,-450.997512,0.00014899,2]
[425113476,1781524246000,-500.0,0.00014899,2]
[425113470,1781524246000,-500.0,0.00014899,2]
[425113489,1781524246000,-264.98869586,0.000149,2]
[425113480,1781524246000,-500.0,0.00014899,2]
[425113481,1781524246000,-500.0,0.00014899,2]
[425113482,1781524246000,-500.0,0.00014899,2]
[425113473,1781524246000,-303.91251271,0.00014899,2]
[425113475,1781524246000,-500.0,0.00014899,2]
[425113474,1781524246000,-230.66,0.00014899,2]
[425113479,1781524246000,-500.0,0.00014899,2]
[425113491,1781524247000,-941.29062164,0.000149,2]
[425113543,1781524842000,136.29899945,0.00012572,2]
[425113542,1781524842000,166.66,0.00012313,2]
[425113549,1781525117000,5528.0,0.000103,5]
[425113550,1781525352000,-774.92969721,0.00012304,2]
[425113552,1781525389000,-283.08,0.00012388,2]
[425113551,1781525389000,-154.16030279,0.00012304,2]
[425113554,1781525389000,-250.0,0.00012434,2]
[425113556,1781525389000,-150.0,0.00012569,2]
[425113555,1781525389000,-300.0,0.0001248,2]
[425113557,1781525389000,-500.0,0.0001257,2]
[425113558,1781525389000,-15.45277522,0.0001257,2]
[425113553,1781525389000,-150.0,0.00012432,2]
[425113576,1781525432000,-166.66,0.00012831,2]
[425113585,1781525432000,-500.0,0.00013225,2]
[425113583,1781525432000,-209.85990034,0.00013225,2]
[425113582,1781525432000,-394.25461245,0.00013225,2]
[425113581,1781525432000,-467.2968,0.00013223,2]
[425113580,1781525432000,-176.71135638,0.00013156,2]
[425113579,1781525432000,-320.0,0.00013119,2]
[425113577,1781525432000,-166.66,0.0001309,2]
[425113578,1781525432000,-160.0,0.00013096,2]
[425113575,1781525432000,-320.0,0.00012799,2]
[425113584,1781525432000,-169.03063039,0.00013225,2]
[425113572,1781525432000,-30.36100055,0.00012572,2]
[425113573,1781525432000,-163.69,0.00012572,2]
[425113569,1781525432000,-500.0,0.00012569,2]
[425113570,1781525432000,-500.0,0.00012569,2]
[425113571,1781525432000,-2438.303017,0.00012571,2]
[425113568,1781525432000,-500.0,0.00012569,2]
[425113567,1781525432000,-500.0,0.00012569,2]
[425113566,1781525432000,-500.0,0.00012569,2]
[425113565,1781525432000,-416.0,0.00012569,2]
[425113563,1781525432000,-500.0,0.00012569,2]
[425113574,1781525432000,-200.0,0.00012647,2]
[425113586,1781525432000,-460.17362818,0.00013225,2]
[425113564,1781525432000,-84.0,0.00012569,2]
[425113588,1781525432000,-500.0,0.00013225,2]
[425113587,1781525432000,-603.51717324,0.00013225,2]
[425113623,1781525432000,-385.00293256,0.00013226,2]
[425113622,1781525432000,-857.03856977,0.00013226,2]
[425113624,1781525432000,-413.48160874,0.00012569,2]
[425113620,1781525432000,-573.38047708,0.00013226,2]
[425113617,1781525432000,-1254.41808677,0.00013226,2]
[425113615,1781525432000,-119698.73256862,0.00013226,2]
[425113612,1781525432000,-28438.73016835,0.00013226,2]
[425113610,1781525432000,-65071.50125435,0.00013226,2]
[425113600,1781525432000,-14199.54564638,0.00013226,2]
[425113599,1781525432000,-500.0,0.00012569,2]
[425113608,1781525432000,-500.0,0.00012569,2]
[425113602,1781525432000,-6036.78747,0.00013226,2]
[425113589,1781525432000,-460.98020319,0.00013225,2]
[425113595,1781525432000,-947.66880428,0.00013226,2]
[425113596,1781525432000,-1210.40391687,0.00013226,2]
[425113598,1781525432000,-500.0,0.00012569,2]
[425113594,1781525432000,-4240.98020319,0.00013226,2]
[425113590,1781525432000,-500.0,0.00012569,2]
[425113591,1781525432000,-39.01979681,0.00013225,2]
[425113592,1781525432000,-500.0,0.00013225,2]
[425113593,1781525432000,-250.0,0.00013225,2]
[425113605,1781525432000,-300.0,0.00013226,2]
[425113597,1781525432000,-303.8818997,0.00013226,2]
[425113639,1781525438000,-500.0,0.00012569,2]
[425113637,1781525438000,-500.0,0.00012569,2]
[425113636,1781525438000,-500.0,0.00012569,2]
[425113635,1781525438000,-86.51839126,0.00012569,2]
[425113638,1781525438000,-500.0,0.00012569,2]